[Event "Late-Titled-Tuesday-Blitz-April-30-2024"]
[Site "Chess.com"]
[Date "2024.04.30"]
[Round "7"]
[White "NovakRatko"]
[Black "ACollins05"]
[Result "1-0"]
[WhiteElo "2409"]
[BlackElo "2562"]
[TimeControl "180+1"]
[EndTime "15:14:11 PDT"]
[Termination "NovakRatko won by checkmate"]

1. d4 {[%clk 0:02:59.2]} 1... b5 {[%clk 0:02:56.1]} 2. e4 {[%clk 0:02:58.5]}
2... a6 {[%clk 0:02:56.2]} 3. f3 {[%clk 0:02:58]} 3... Bb7 {[%clk 0:02:56.4]} 4.
Bf4 {[%clk 0:02:57.9]} 4... e6 {[%clk 0:02:55.2]} 5. c4 {[%clk 0:02:57.8]} 5...
bxc4 {[%clk 0:02:51.3]} 6. Bxc4 {[%clk 0:02:57.6]} 6... d5 {[%clk 0:02:51.7]} 7.
exd5 {[%clk 0:02:54.9]} 7... Bxd5 {[%clk 0:02:52.6]} 8. Bxd5 {[%clk 0:02:51.3]}
8... Qxd5 {[%clk 0:02:51.1]} 9. Nc3 {[%clk 0:02:51.5]} 9... Bb4 {[%clk
0:02:50.4]} 10. Ne2 {[%clk 0:02:51.6]} 10... c5 {[%clk 0:02:47.8]} 11. Qa4+
{[%clk 0:02:43.5]} 11... Qd7 {[%clk 0:02:46.8]} 12. Qb3 {[%clk 0:02:37.3]} 12...
Bxc3+ {[%clk 0:02:43.4]} 13. bxc3 {[%clk 0:02:35.1]} 13... cxd4 {[%clk
0:02:41.2]} 14. Bxb8 {[%clk 0:02:31.7]} 14... dxc3 {[%clk 0:02:31.5]} 15. Rd1
{[%clk 0:02:25.3]} 15... Qc8 {[%clk 0:02:21.3]} 16. Qa4+ {[%clk 0:02:21.6]}
16... Kf8 {[%clk 0:02:19.2]} 17. Bd6+ {[%clk 0:02:18]} 17... Ne7 {[%clk
0:02:19.4]} 18. Qb4 {[%clk 0:02:15]} 18... Ra7 {[%clk 0:02:15.7]} 19. Qxc3
{[%clk 0:02:10.1]} 19... Qxc3+ {[%clk 0:02:11]} 20. Nxc3 {[%clk 0:02:10]} 20...
f6 {[%clk 0:02:10.9]} 21. Bc5 {[%clk 0:02:03.1]} 21... Ra8 {[%clk 0:02:07.1]}
22. Rd7 {[%clk 0:02:01.5]} 22... Re8 {[%clk 0:02:07.7]} 23. Ne4 {[%clk
0:01:57.9]} 23... h5 {[%clk 0:02:03.4]} 24. O-O {[%clk 0:01:54]} 24... g5 {[%clk
0:02:02.5]} 25. Rb1 {[%clk 0:01:45.9]} 25... Rh7 {[%clk 0:02:00.3]} 26. Nxf6
{[%clk 0:01:44.3]} 26... Rf7 {[%clk 0:02:00.5]} 27. Nxe8 {[%clk 0:01:43.7]}
27... Kxe8 {[%clk 0:02:01.1]} 28. Rxe7+ {[%clk 0:01:42.6]} 28... Rxe7 {[%clk
0:02:02]} 29. Bxe7 {[%clk 0:01:42.9]} 29... Kxe7 {[%clk 0:02:02.9]} 30. Rb6
{[%clk 0:01:42.5]} 30... g4 {[%clk 0:02:03.8]} 31. fxg4 {[%clk 0:01:41.8]} 31...
hxg4 {[%clk 0:02:04.7]} 32. Rxa6 {[%clk 0:01:42]} 32... g3 {[%clk 0:02:05.6]}
33. hxg3 {[%clk 0:01:41.9]} 33... e5 {[%clk 0:02:06.5]} 34. Kf2 {[%clk
0:01:41.6]} 34... e4 {[%clk 0:02:07.4]} 35. Ke3 {[%clk 0:01:42.3]} 35... Kf7
{[%clk 0:02:06.9]} 36. Kxe4 {[%clk 0:01:43.2]} 36... Kg7 {[%clk 0:02:07.8]} 37.
Ke5 {[%clk 0:01:43.2]} 37... Kh7 {[%clk 0:02:08.7]} 38. Rf6 {[%clk 0:01:43.4]}
38... Kg7 {[%clk 0:02:09.6]} 39. a4 {[%clk 0:01:43.1]} 39... Kh7 {[%clk
0:02:10.5]} 40. Kf5 {[%clk 0:01:42.6]} 40... Kg7 {[%clk 0:02:11.4]} 41. a5
{[%clk 0:01:43.2]} 41... Kh7 {[%clk 0:02:12.3]} 42. Rg6 {[%clk 0:01:43.6]} 42...
Kh8 {[%clk 0:02:12.3]} 43. Rg4 {[%clk 0:01:43.7]} 43... Kh7 {[%clk 0:02:13.2]}
44. Kf6 {[%clk 0:01:43.9]} 44... Kh8 {[%clk 0:02:14.1]} 45. Kf7 {[%clk 0:01:44]}
45... Kh7 {[%clk 0:02:13.7]} 46. Rh4# {[%clk 0:01:44.2]} 1-0

[Event "Late-Titled-Tuesday-Blitz-April-30-2024"]
[Site "Chess.com"]
[Date "2024.04.30"]
[Round "7"]
[White "Romkachess"]
[Black "tgpgoat"]
[Result "0-1"]
[WhiteElo "2622"]
[BlackElo "2468"]
[TimeControl "180+1"]
[EndTime "15:14:22 PDT"]
[Termination "tgpgoat won by checkmate"]

1. e4 {[%clk 0:02:45.2]} 1... c5 {[%clk 0:02:58]} 2. Nf3 {[%clk 0:02:39.6]} 2...
e6 {[%clk 0:02:58.5]} 3. d4 {[%clk 0:02:34.1]} 3... cxd4 {[%clk 0:02:59.4]} 4.
Nxd4 {[%clk 0:02:33.1]} 4... Nc6 {[%clk 0:03:00.3]} 5. Nc3 {[%clk 0:02:21.3]}
5... Qc7 {[%clk 0:03:00.7]} 6. Be3 {[%clk 0:02:13.3]} 6... a6 {[%clk 0:03:00.4]}
7. a3 {[%clk 0:02:13.2]} 7... Nf6 {[%clk 0:03:00.8]} 8. f3 {[%clk 0:02:07.5]}
8... b5 {[%clk 0:03:01.2]} 9. Qd2 {[%clk 0:02:07.5]} 9... Bb7 {[%clk 0:03:00.7]}
10. O-O-O {[%clk 0:02:07.1]} 10... b4 {[%clk 0:03:01.1]} 11. axb4 {[%clk
0:02:02.9]} 11... Bxb4 {[%clk 0:03:02]} 12. Nxc6 {[%clk 0:01:58.3]} 12... Bxc6
{[%clk 0:02:59.8]} 13. Bd4 {[%clk 0:01:45.2]} 13... e5 {[%clk 0:02:52.3]} 14.
Be3 {[%clk 0:01:38.5]} 14... d5 {[%clk 0:02:48.5]} 15. exd5 {[%clk 0:01:25.6]}
15... Nxd5 {[%clk 0:02:44.6]} 16. Bc4 {[%clk 0:01:00.4]} 16... Qa5 {[%clk
0:02:31.6]} 17. Kb1 {[%clk 0:00:29]} 17... Nxc3+ {[%clk 0:02:21.6]} 18. bxc3
{[%clk 0:00:27]} 18... Bxc3 {[%clk 0:02:22.5]} 19. Qd6 {[%clk 0:00:23.6]} 19...
Qa1# {[%clk 0:02:20]} 0-1

[Event "Late-Titled-Tuesday-Blitz-April-30-2024"]
[Site "Chess.com"]
[Date "2024.04.30"]
[Round "7"]
[White "Blampman"]
[Black "Russian_berezka"]
[Result "0-1"]
[WhiteElo "2431"]
[BlackElo "2618"]
[TimeControl "180+1"]
[EndTime "15:14:22 PDT"]
[Termination "Russian_berezka won by resignation"]

1. d4 {[%clk 0:02:59.6]} 1... Nf6 {[%clk 0:02:59.6]} 2. c4 {[%clk 0:02:59.3]}
2... e6 {[%clk 0:03:00.3]} 3. Nc3 {[%clk 0:02:59.3]} 3... d5 {[%clk 0:02:59.5]}
4. Nf3 {[%clk 0:02:58.3]} 4... dxc4 {[%clk 0:02:57.6]} 5. e4 {[%clk 0:02:56.2]}
5... b5 {[%clk 0:02:58]} 6. e5 {[%clk 0:02:55.7]} 6... Nd5 {[%clk 0:02:58.6]} 7.
Nxb5 {[%clk 0:02:55.3]} 7... Nb6 {[%clk 0:02:59.3]} 8. Be2 {[%clk 0:02:52.3]}
8... Nc6 {[%clk 0:02:59.3]} 9. O-O {[%clk 0:02:50]} 9... Be7 {[%clk 0:02:59.6]}
10. Be3 {[%clk 0:02:49.8]} 10... O-O {[%clk 0:02:57.9]} 11. Qc1 {[%clk
0:02:48.6]} 11... Rb8 {[%clk 0:02:53.7]} 12. Nc3 {[%clk 0:02:41.7]} 12... Bb7
{[%clk 0:02:47.8]} 13. Rd1 {[%clk 0:02:40.2]} 13... Nb4 {[%clk 0:02:43.2]} 14.
Nd2 {[%clk 0:02:28.2]} 14... Qd7 {[%clk 0:02:31.9]} 15. Nxc4 {[%clk 0:02:24.3]}
15... Nxc4 {[%clk 0:02:32.1]} 16. Bxc4 {[%clk 0:02:25.1]} 16... Bxg2 {[%clk
0:02:32.4]} 17. Kxg2 {[%clk 0:02:11.9]} 17... Qc6+ {[%clk 0:02:32.1]} 18. f3
{[%clk 0:02:12.4]} 18... Qxc4 {[%clk 0:02:32]} 19. Ne4 {[%clk 0:02:12]} 19...
Qe2+ {[%clk 0:02:03.4]} 20. Nf2 {[%clk 0:02:09.9]} 20... Nc2 {[%clk 0:02:00.6]}
21. Re1 {[%clk 0:01:59.4]} 21... Nxe1+ {[%clk 0:01:50.3]} 22. Qxe1 {[%clk
0:01:58]} 22... Rxb2 {[%clk 0:01:51]} 23. Qxe2 {[%clk 0:01:39.4]} 23... Rxe2
{[%clk 0:01:51.9]} 24. Bf4 {[%clk 0:01:39.9]} 24... Rb8 {[%clk 0:01:49.4]} 25.
Rc1 {[%clk 0:01:39.1]} 25... Rbb2 {[%clk 0:01:48.2]} 26. Bg3 {[%clk 0:01:39.4]}
26... h5 {[%clk 0:01:45.2]} 27. h4 {[%clk 0:01:36.8]} 27... g5 {[%clk
0:01:44.5]} 28. hxg5 {[%clk 0:01:36.9]} 28... Bxg5 {[%clk 0:01:44]} 29. Rxc7
{[%clk 0:01:23.5]} 29... h4 {[%clk 0:01:43.7]} 0-1

[Event "Late-Titled-Tuesday-Blitz-April-30-2024"]
[Site "Chess.com"]
[Date "2024.04.30"]
[Round "7"]
[White "vugarrasulov"]
[Black "XDPS"]
[Result "1-0"]
[WhiteElo "2969"]
[BlackElo "2831"]
[TimeControl "180+1"]
[EndTime "15:14:40 PDT"]
[Termination "vugarrasulov won by checkmate"]

1. d4 {[%clk 0:03:00.9]} 1... d5 {[%clk 0:02:59.7]} 2. c4 {[%clk 0:03:01.4]}
2... e6 {[%clk 0:03:00.3]} 3. Nc3 {[%clk 0:03:01.5]} 3... h6 {[%clk 0:03:00.9]}
4. e4 {[%clk 0:03:00]} 4... dxe4 {[%clk 0:03:00.8]} 5. Nxe4 {[%clk 0:03:00.9]}
5... Bb4+ {[%clk 0:03:01.3]} 6. Nc3 {[%clk 0:02:59.5]} 6... e5 {[%clk
0:03:00.7]} 7. Qa4+ {[%clk 0:02:54.7]} 7... Nc6 {[%clk 0:03:00.3]} 8. d5 {[%clk
0:02:55.2]} 8... Bxc3+ {[%clk 0:02:38.5]} 9. bxc3 {[%clk 0:02:56.1]} 9... Bd7
{[%clk 0:02:38.8]} 10. dxc6 {[%clk 0:02:55.6]} 10... Bxc6 {[%clk 0:02:39.7]} 11.
Qa5 {[%clk 0:02:47.5]} 11... Qf6 {[%clk 0:02:36.8]} 12. Qxc7 {[%clk 0:02:44.2]}
12... e4 {[%clk 0:02:31.5]} 13. Ne2 {[%clk 0:02:40.4]} 13... Ne7 {[%clk
0:02:30.8]} 14. Ba3 {[%clk 0:02:39.9]} 14... Nf5 {[%clk 0:02:30.7]} 15. O-O-O
{[%clk 0:02:31.3]} 15... g5 {[%clk 0:02:23.6]} 16. Nd4 {[%clk 0:02:30.2]} 16...
Bd7 {[%clk 0:01:55.4]} 17. Qxb7 {[%clk 0:02:10.6]} 17... Rc8 {[%clk 0:01:54.9]}
18. Qxe4+ {[%clk 0:02:10.4]} 18... Be6 {[%clk 0:01:52.5]} 19. Bd3 {[%clk
0:01:59]} 19... Ne7 {[%clk 0:01:37.8]} 20. Bxe7 {[%clk 0:01:52.5]} 20... Qxe7
{[%clk 0:01:38]} 21. Nxe6 {[%clk 0:01:52.2]} 21... Qa3+ {[%clk 0:01:37.1]} 22.
Kd2 {[%clk 0:01:51.9]} 22... Qxa2+ {[%clk 0:01:37]} 23. Ke1 {[%clk 0:01:51.7]}
23... Qa5 {[%clk 0:01:35.6]} 24. Qd4 {[%clk 0:01:41.3]} 24... Rg8 {[%clk
0:01:33.1]} 25. Ng7+ {[%clk 0:01:39.6]} 25... Kf8 {[%clk 0:01:32.9]} 26. Nf5
{[%clk 0:01:39.4]} 26... Rg6 {[%clk 0:01:31.4]} 27. Kf1 {[%clk 0:01:33.7]} 27...
Rd8 {[%clk 0:01:31]} 28. Qh8+ {[%clk 0:01:33.3]} 28... Rg8 {[%clk 0:01:29]} 29.
Qxh6+ {[%clk 0:01:34.2]} 29... Ke8 {[%clk 0:01:29]} 30. Re1+ {[%clk 0:01:33.9]}
30... Kd7 {[%clk 0:01:29]} 31. Qd6+ {[%clk 0:01:34]} 31... Kc8 {[%clk
0:01:29.4]} 32. Ne7+ {[%clk 0:01:34.3]} 32... Kb7 {[%clk 0:01:30]} 33. Rb1+
{[%clk 0:01:33.7]} 33... Ka8 {[%clk 0:01:30.2]} 34. Qc6# {[%clk 0:01:33.7]} 1-0

[Event "Late-Titled-Tuesday-Blitz-April-30-2024"]
[Site "Chess.com"]
[Date "2024.04.30"]
[Round "7"]
[White "reevecanada"]
[Black "rezamahdavi2008"]
[Result "0-1"]
[WhiteElo "2642"]
[BlackElo "2912"]
[TimeControl "180+1"]
[EndTime "15:14:50 PDT"]
[Termination "rezamahdavi2008 won by checkmate"]

1. e4 {[%clk 0:02:35.9]} 1... c5 {[%clk 0:02:59.4]} 2. Nf3 {[%clk 0:02:35.5]}
2... d6 {[%clk 0:02:59.5]} 3. d4 {[%clk 0:02:34.6]} 3... cxd4 {[%clk 0:03:00.4]}
4. Nxd4 {[%clk 0:02:31.9]} 4... Nf6 {[%clk 0:03:01.1]} 5. Nc3 {[%clk 0:02:31.6]}
5... a6 {[%clk 0:03:01.9]} 6. f3 {[%clk 0:02:30.6]} 6... e5 {[%clk 0:03:00.3]}
7. Nb3 {[%clk 0:02:30.5]} 7... Be6 {[%clk 0:02:59.1]} 8. Bg5 {[%clk 0:02:27.2]}
8... Nbd7 {[%clk 0:02:49.5]} 9. Qd2 {[%clk 0:02:26.2]} 9... Be7 {[%clk
0:02:46.6]} 10. O-O-O {[%clk 0:02:25.2]} 10... Rc8 {[%clk 0:02:46]} 11. Kb1
{[%clk 0:02:24]} 11... b5 {[%clk 0:02:43]} 12. g4 {[%clk 0:02:23.4]} 12... b4
{[%clk 0:02:41.9]} 13. Na4 {[%clk 0:02:21.4]} 13... Nxe4 {[%clk 0:02:31.9]} 14.
fxe4 {[%clk 0:02:18.1]} 14... Bxg5 {[%clk 0:02:32.6]} 15. Qxd6 {[%clk
0:02:12.3]} 15... Be7 {[%clk 0:02:33]} 16. Qxa6 {[%clk 0:02:11.8]} 16... Qc7
{[%clk 0:02:33.3]} 17. Bb5 {[%clk 0:02:08.6]} 17... O-O {[%clk 0:02:27.6]} 18.
Rd2 {[%clk 0:01:55.4]} 18... Bg5 {[%clk 0:02:18.5]} 19. Rg2 {[%clk 0:01:50.7]}
19... Nf6 {[%clk 0:02:15.8]} 20. h4 {[%clk 0:01:47.7]} 20... Be3 {[%clk
0:02:15]} 21. g5 {[%clk 0:01:43.2]} 21... Nxe4 {[%clk 0:02:14.4]} 22. Re1 {[%clk
0:01:24.5]} 22... Nd2+ {[%clk 0:02:07.8]} 23. Nxd2 {[%clk 0:01:21.8]} 23...
Qxc2+ {[%clk 0:02:05.9]} 24. Ka1 {[%clk 0:01:22]} 24... Bxd2 {[%clk 0:02:06.8]}
25. Bd3 {[%clk 0:01:21]} 25... Qc1+ {[%clk 0:02:00.9]} 26. Rxc1 {[%clk 0:01:15]}
26... Rxc1+ {[%clk 0:02:01.8]} 27. Bb1 {[%clk 0:01:15]} 27... Bf5 {[%clk
0:02:02.7]} 28. a3 {[%clk 0:00:48.6]} 28... b3 {[%clk 0:01:59.4]} 29. Nc3 {[%clk
0:00:46.1]} 29... Bxc3 {[%clk 0:01:59.2]} 30. bxc3 {[%clk 0:00:43.2]} 30...
Rxb1# {[%clk 0:01:59.4]} 0-1

[Event "Late-Titled-Tuesday-Blitz-April-30-2024"]
[Site "Chess.com"]
[Date "2024.04.30"]
[Round "7"]
[White "zano2023"]
[Black "RealPerangel"]
[Result "1-0"]
[WhiteElo "2161"]
[BlackElo "2729"]
[TimeControl "180+1"]
[EndTime "15:14:56 PDT"]
[Termination "zano2023 won on time"]

1. d4 {[%clk 0:03:00.9]} 1... c5 {[%clk 0:02:02.4]} 2. e3 {[%clk 0:02:59.4]}
2... Nf6 {[%clk 0:02:02.2]} 3. Nf3 {[%clk 0:02:59.1]} 3... g6 {[%clk 0:02:01.9]}
4. Nbd2 {[%clk 0:02:59.7]} 4... Bg7 {[%clk 0:02:02.8]} 5. Bd3 {[%clk 0:02:59.7]}
5... O-O {[%clk 0:02:03.3]} 6. O-O {[%clk 0:02:59.3]} 6... d6 {[%clk 0:02:03.6]}
7. Qe2 {[%clk 0:02:58.9]} 7... Nc6 {[%clk 0:02:00.2]} 8. c3 {[%clk 0:02:58.6]}
8... e5 {[%clk 0:02:00.4]} 9. dxe5 {[%clk 0:02:54.5]} 9... dxe5 {[%clk
0:02:01.3]} 10. e4 {[%clk 0:02:51.2]} 10... Nd5 {[%clk 0:02:02.2]} 11. exd5
{[%clk 0:02:50.4]} 11... Qxd5 {[%clk 0:01:58.4]} 12. Be4 {[%clk 0:02:46.9]}
12... Qe6 {[%clk 0:01:57.8]} 13. Nc4 {[%clk 0:02:27.5]} 13... Ne7 {[%clk
0:01:53]} 14. Rd1 {[%clk 0:02:19.6]} 14... f5 {[%clk 0:01:50.7]} 15. Bc2 {[%clk
0:02:19]} 15... e4 {[%clk 0:01:49.9]} 16. Ng5 {[%clk 0:02:13.6]} 16... Qf6
{[%clk 0:01:49.4]} 17. Bb3 {[%clk 0:02:12]} 17... Kh8 {[%clk 0:01:27.3]} 18. Rd6
{[%clk 0:02:09.9]} 1-0

[Event "Late-Titled-Tuesday-Blitz-April-30-2024"]
[Site "Chess.com"]
[Date "2024.04.30"]
[Round "7"]
[White "TheAlienParty"]
[Black "Payyappat"]
[Result "0-1"]
[WhiteElo "2424"]
[BlackElo "2497"]
[TimeControl "180+1"]
[EndTime "15:15:04 PDT"]
[Termination "Payyappat won by checkmate"]

1. c4 {[%clk 0:02:59]} 1... c5 {[%clk 0:02:59.2]} 2. Nf3 {[%clk 0:02:58.6]} 2...
Nc6 {[%clk 0:02:59.8]} 3. d4 {[%clk 0:02:58.7]} 3... Nf6 {[%clk 0:03:00.2]} 4.
dxc5 {[%clk 0:02:55.4]} 4... e6 {[%clk 0:02:58.8]} 5. a3 {[%clk 0:02:50]} 5...
Bxc5 {[%clk 0:02:57.4]} 6. b4 {[%clk 0:02:49.7]} 6... Bb6 {[%clk 0:02:57.6]} 7.
c5 {[%clk 0:02:49.4]} 7... Bc7 {[%clk 0:02:55.5]} 8. Bb2 {[%clk 0:02:49.1]} 8...
O-O {[%clk 0:02:52.9]} 9. Nbd2 {[%clk 0:02:48]} 9... b6 {[%clk 0:02:49.8]} 10.
cxb6 {[%clk 0:02:37.3]} 10... Bxb6 {[%clk 0:02:48.8]} 11. e3 {[%clk 0:02:37.3]}
11... d5 {[%clk 0:02:43.8]} 12. Bd3 {[%clk 0:02:36.9]} 12... Qe7 {[%clk
0:02:41.3]} 13. O-O {[%clk 0:02:30]} 13... e5 {[%clk 0:02:38.6]} 14. b5 {[%clk
0:02:26.1]} 14... e4 {[%clk 0:02:35.8]} 15. bxc6 {[%clk 0:02:25]} 15... exd3
{[%clk 0:02:33]} 16. Qb3 {[%clk 0:02:24.7]} 16... Ba6 {[%clk 0:02:31.2]} 17.
Rac1 {[%clk 0:02:23.3]} 17... Rac8 {[%clk 0:02:23.7]} 18. Bxf6 {[%clk
0:02:22.2]} 18... Qxf6 {[%clk 0:02:20.7]} 19. Qxd5 {[%clk 0:02:22.2]} 19... Rfd8
{[%clk 0:02:18.4]} 20. Qe4 {[%clk 0:02:07.2]} 20... Qb2 {[%clk 0:02:15.3]} 21.
Qa4 {[%clk 0:02:05.6]} 21... Bb5 {[%clk 0:02:08.8]} 22. Rb1 {[%clk 0:01:52.3]}
22... Qxb1 {[%clk 0:02:01.9]} 23. Rxb1 {[%clk 0:01:42.4]} 23... Bxa4 {[%clk
0:01:57.7]} 24. Ne5 {[%clk 0:01:34.6]} 24... Rd5 {[%clk 0:01:52]} 25. Nec4
{[%clk 0:01:33.1]} 25... Rxc6 {[%clk 0:01:47.6]} 26. Rb4 {[%clk 0:01:32.3]}
26... Bc2 {[%clk 0:01:43]} 27. a4 {[%clk 0:01:30.9]} 27... g6 {[%clk 0:01:39.5]}
28. e4 {[%clk 0:01:26]} 28... Rdc5 {[%clk 0:01:35.2]} 29. Kf1 {[%clk 0:01:18.9]}
29... Rxc4 {[%clk 0:01:26.1]} 30. Nxc4 {[%clk 0:01:16.6]} 30... Rxc4 {[%clk
0:01:25]} 31. Rxc4 {[%clk 0:01:16.4]} 31... d2 {[%clk 0:01:23.3]} 32. Rxc2
{[%clk 0:01:15.6]} 32... d1=Q# {[%clk 0:01:22.6]} 0-1

[Event "Late-Titled-Tuesday-Blitz-April-30-2024"]
[Site "Chess.com"]
[Date "2024.04.30"]
[Round "7"]
[White "ansko1999"]
[Black "burritus"]
[Result "1-0"]
[WhiteElo "2616"]
[BlackElo "2431"]
[TimeControl "180+1"]
[EndTime "15:15:05 PDT"]
[Termination "ansko1999 won by resignation"]

1. c4 {[%clk 0:03:00.9]} 1... e5 {[%clk 0:02:58]} 2. Nf3 {[%clk 0:03:01.2]} 2...
Nc6 {[%clk 0:02:57.4]} 3. d4 {[%clk 0:03:00.7]} 3... exd4 {[%clk 0:02:56.8]} 4.
Nxd4 {[%clk 0:03:01.6]} 4... g6 {[%clk 0:02:50.8]} 5. g3 {[%clk 0:02:45.2]} 5...
Bg7 {[%clk 0:02:50.8]} 6. Nxc6 {[%clk 0:02:45]} 6... bxc6 {[%clk 0:02:50.4]} 7.
Bg2 {[%clk 0:02:45.5]} 7... Ne7 {[%clk 0:02:50.7]} 8. Nc3 {[%clk 0:02:45.2]}
8... O-O {[%clk 0:02:50.6]} 9. O-O {[%clk 0:02:40.2]} 9... d6 {[%clk 0:02:49.4]}
10. Bg5 {[%clk 0:02:38.1]} 10... Rb8 {[%clk 0:02:46.6]} 11. Qd2 {[%clk
0:02:33.8]} 11... c5 {[%clk 0:02:28]} 12. Nd5 {[%clk 0:02:21.8]} 12... f6 {[%clk
0:02:09.6]} 13. Be3 {[%clk 0:02:16.3]} 13... Be6 {[%clk 0:02:06.9]} 14. b3
{[%clk 0:02:12.2]} 14... Nf5 {[%clk 0:02:06.7]} 15. Bf4 {[%clk 0:01:58.3]} 15...
g5 {[%clk 0:02:06.3]} 16. Be3 {[%clk 0:01:56.7]} 16... Re8 {[%clk 0:02:02.1]}
17. Rad1 {[%clk 0:01:54.5]} 17... Nxe3 {[%clk 0:01:57.6]} 18. Nxe3 {[%clk
0:01:53]} 18... f5 {[%clk 0:01:57.7]} 19. Bd5 {[%clk 0:01:50.1]} 19... Qf6
{[%clk 0:01:49.6]} 20. Bxe6+ {[%clk 0:01:49.7]} 20... Qxe6 {[%clk 0:01:41.6]}
21. Qd5 {[%clk 0:01:48.8]} 21... h6 {[%clk 0:01:41.3]} 22. Rfe1 {[%clk
0:01:29.9]} 22... f4 {[%clk 0:01:25]} 23. gxf4 {[%clk 0:01:14.4]} 23... gxf4
{[%clk 0:01:24.4]} 24. Qxe6+ {[%clk 0:01:15.1]} 24... Rxe6 {[%clk 0:01:23.9]}
25. Nd5 {[%clk 0:01:16]} 25... Bc3 {[%clk 0:01:19.9]} 26. Nxc3 {[%clk
0:01:16.1]} 1-0

[Event "Late-Titled-Tuesday-Blitz-April-30-2024"]
[Site "Chess.com"]
[Date "2024.04.30"]
[Round "7"]
[White "dosto07"]
[Black "HamedWafa4"]
[Result "0-1"]
[WhiteElo "2506"]
[BlackElo "2722"]
[TimeControl "180+1"]
[EndTime "15:15:09 PDT"]
[Termination "HamedWafa4 won by checkmate"]

1. e4 {[%clk 0:03:00.9]} 1... a6 {[%clk 0:03:00.9]} 2. d4 {[%clk 0:02:59.9]}
2... c6 {[%clk 0:03:00.5]} 3. Nc3 {[%clk 0:03:00.6]} 3... d5 {[%clk 0:03:00.4]}
4. Nf3 {[%clk 0:03:00.7]} 4... Bg4 {[%clk 0:03:00.1]} 5. Be2 {[%clk 0:02:56.2]}
5... e6 {[%clk 0:02:55.4]} 6. O-O {[%clk 0:02:55.1]} 6... Nd7 {[%clk 0:02:53.7]}
7. exd5 {[%clk 0:02:54.6]} 7... cxd5 {[%clk 0:02:53.7]} 8. Ne5 {[%clk
0:02:54.9]} 8... Nxe5 {[%clk 0:02:52.2]} 9. Bxg4 {[%clk 0:02:53.7]} 9... Nxg4
{[%clk 0:02:52.1]} 10. Qxg4 {[%clk 0:02:54.2]} 10... Nf6 {[%clk 0:02:52.8]} 11.
Qe2 {[%clk 0:02:47.7]} 11... Bd6 {[%clk 0:02:49.2]} 12. Bg5 {[%clk 0:02:47.3]}
12... O-O {[%clk 0:02:48.4]} 13. Nd1 {[%clk 0:02:41.1]} 13... Rc8 {[%clk
0:02:38.8]} 14. Ne3 {[%clk 0:02:40.4]} 14... Qb6 {[%clk 0:02:29.3]} 15. Bxf6
{[%clk 0:02:37]} 15... gxf6 {[%clk 0:02:30.2]} 16. c3 {[%clk 0:02:36.4]} 16...
f5 {[%clk 0:02:30.2]} 17. g3 {[%clk 0:02:30.7]} 17... Kh8 {[%clk 0:02:30]} 18.
Ng2 {[%clk 0:02:27.8]} 18... Rg8 {[%clk 0:02:28.9]} 19. Kh1 {[%clk 0:02:23.7]}
19... Rg4 {[%clk 0:02:19.4]} 20. f3 {[%clk 0:02:17.9]} 20... Rg7 {[%clk
0:02:10.6]} 21. f4 {[%clk 0:02:18.1]} 21... Rcg8 {[%clk 0:02:09.9]} 22. Nh4
{[%clk 0:02:17.2]} 22... Qd8 {[%clk 0:02:09.6]} 23. Rae1 {[%clk 0:02:08.8]}
23... b5 {[%clk 0:02:05.6]} 24. a4 {[%clk 0:02:07.3]} 24... bxa4 {[%clk
0:01:57.3]} 25. Qxa6 {[%clk 0:02:07.1]} 25... Rg4 {[%clk 0:01:52.4]} 26. Nf3
{[%clk 0:01:55]} 26... Bb8 {[%clk 0:01:39.9]} 27. Qxa4 {[%clk 0:01:51.4]} 27...
Qf6 {[%clk 0:01:39.3]} 28. Qd7 {[%clk 0:01:48]} 28... h6 {[%clk 0:01:29.8]} 29.
Ra1 {[%clk 0:01:45.2]} 29... Qg6 {[%clk 0:01:25.9]} 30. Ne5 {[%clk 0:01:39.6]}
30... Bxe5 {[%clk 0:01:24.3]} 31. dxe5 {[%clk 0:01:32.1]} 31... Rxg3 {[%clk
0:01:21.6]} 32. Qa7 {[%clk 0:01:22.5]} 32... Rg2 {[%clk 0:01:19.9]} 33. Qe3
{[%clk 0:01:13.2]} 33... Rxh2+ {[%clk 0:01:19.6]} 34. Kxh2 {[%clk 0:01:11.6]}
34... Qg2# {[%clk 0:01:20.5]} 0-1

[Event "Late-Titled-Tuesday-Blitz-April-30-2024"]
[Site "Chess.com"]
[Date "2024.04.30"]
[Round "7"]
[White "Iskusnyh"]
[Black "Arystanner"]
[Result "0-1"]
[WhiteElo "2622"]
[BlackElo "2848"]
[TimeControl "180+1"]
[EndTime "15:15:15 PDT"]
[Termination "Arystanner won on time"]

1. d4 {[%clk 0:03:00.9]} 1... d5 {[%clk 0:02:56.8]} 2. c4 {[%clk 0:03:00.5]}
2... dxc4 {[%clk 0:02:56.7]} 3. e3 {[%clk 0:02:59.3]} 3... e6 {[%clk 0:02:56.3]}
4. Bxc4 {[%clk 0:02:59.4]} 4... Nf6 {[%clk 0:02:56.6]} 5. Nf3 {[%clk 0:02:59.8]}
5... c5 {[%clk 0:02:57]} 6. O-O {[%clk 0:02:58.2]} 6... a6 {[%clk 0:02:57]} 7.
Nc3 {[%clk 0:02:56.8]} 7... b5 {[%clk 0:02:54.8]} 8. Be2 {[%clk 0:02:56.3]} 8...
Bb7 {[%clk 0:02:55.2]} 9. dxc5 {[%clk 0:02:55.9]} 9... Bxc5 {[%clk 0:02:54]} 10.
Qxd8+ {[%clk 0:02:54.7]} 10... Kxd8 {[%clk 0:02:54.9]} 11. Nd2 {[%clk
0:02:54.4]} 11... Ke7 {[%clk 0:02:54.1]} 12. Nb3 {[%clk 0:02:53.8]} 12... Bd6
{[%clk 0:02:48.8]} 13. f3 {[%clk 0:02:44.9]} 13... b4 {[%clk 0:02:38.9]} 14. Na4
{[%clk 0:02:43.8]} 14... Nbd7 {[%clk 0:02:34.5]} 15. e4 {[%clk 0:02:41.9]} 15...
Bc6 {[%clk 0:02:34.4]} 16. e5 {[%clk 0:02:28.4]} 16... Bxe5 {[%clk 0:02:33.4]}
17. Na5 {[%clk 0:01:26]} 17... Bxa4 {[%clk 0:02:29.8]} 18. Be3 {[%clk
0:01:26.1]} 18... Rhc8 {[%clk 0:02:23.2]} 19. Rab1 {[%clk 0:01:00.4]} 19... Nd5
{[%clk 0:02:20.2]} 20. Bf2 {[%clk 0:00:55.4]} 20... Nf4 {[%clk 0:02:20.6]} 21.
Bd1 {[%clk 0:00:52.4]} 21... Bb5 {[%clk 0:02:19.2]} 22. Re1 {[%clk 0:00:49.7]}
22... Nd3 {[%clk 0:02:19.7]} 23. Re4 {[%clk 0:00:43.1]} 23... Nxf2 {[%clk
0:02:19.8]} 24. Kxf2 {[%clk 0:00:43]} 24... Nc5 {[%clk 0:02:19.9]} 25. Rh4
{[%clk 0:00:35]} 25... Nd3+ {[%clk 0:02:20.2]} 26. Kg1 {[%clk 0:00:30.5]} 26...
g5 {[%clk 0:02:20.9]} 27. Re4 {[%clk 0:00:27.3]} 27... f5 {[%clk 0:02:19.4]} 28.
Re2 {[%clk 0:00:20.5]} 28... Bd4+ {[%clk 0:02:19.5]} 29. Kh1 {[%clk 0:00:13.1]}
29... Nf2+ {[%clk 0:02:19.8]} 0-1